bitfinex/quotes_ETHUSD_20220219
["timestamp","ask_amount","ask_price","bid_price","bid_amount"]
[1645292052312,6.13711616,2758.2,2757.3,0.50315058]
[1645292052516,4.92491616,2758.2,2757.3,0.50315058]
[1645292053513,4.92491616,2758.2,2757.6,0.00330044]
[1645292053514,4.5388,2758.2,2757.6,0.00330044]
[1645292053716,0.90711,2758.2,2757.6,0.00330044]
[1645292053915,3.36424,2758.3,2757.6,0.00330044]
[1645292053916,2.7997,2758.3,2757.6,0.00330044]
[1645292054317,2.7997,2758.3,2757.3,0.50315058]
[1645292054712,2.7997,2758.3,2757.8,0.00330039]
[1645292055115,0.04134,2758.4,2757.8,0.00330039]
[1645292055313,0.00329949,2758.5,2757.8,0.00330039]
[1645292055515,4.4486,2758.7,2757.5,1.54048443]
[1645292055755,4.4486,2758.7,2757.6,1.54048443]
[1645292055956,0.00329959,2758.5,2757.8,0.00330049]
[1645292056158,0.00329959,2758.5,2757.9,0.56498767]
[1645292056454,0.00329959,2758.5,2758.0,1.54048443]
[1645292056859,1.90698,2758.6,2758.0,1.54048443]
[1645292057054,0.00329965,2758.5,2758.0,1.54048443]
[1645292057255,0.90704,2758.4,2758.0,1.54048443]
[1645292057456,0.90704,2758.4,2758.1,1.54048443]
[1645292057657,0.90704,2758.4,2757.8,0.00330055]
[1645292058055,0.90704,2758.4,2757.5,1.54050216]
[1645292058256,0.90704,2758.4,2757.8,0.00330058]
[1645292058857,1.90704,2758.4,2757.8,0.00330058]
[1645292059256,1.90704,2758.4,2757.5,1.54050216]
[1645292059516,1.90704,2758.4,2757.8,0.00330049]
[1645292059716,0.90704,2758.4,2757.8,0.00330049]
[1645292059914,1.90704,2758.4,2757.8,0.00330049]
[1645292060313,1.90704,2758.4,2757.5,1.54050216]
[1645292060314,0.90704,2758.4,2757.5,1.54050216]
[1645292060813,0.90704,2758.4,2757.8,0.00330049]
[1645292061614,0.90704,2758.4,2757.5,1.54050216]
[1645292061814,1.90704,2758.4,2757.8,0.00330049]
[1645292062817,1.90704,2758.4,2757.5,1.54050216]
[1645292063016,1.90704,2758.4,2757.8,0.00330049]
[1645292064061,1.90704,2758.4,2757.5,1.54050216]
[1645292064257,1.90704,2758.4,2757.8,0.00330049]
[1645292065158,1.90704,2758.4,2757.5,1.54050216]
[1645292065357,1.90704,2758.4,2757.8,0.00330049]
[1645292066356,1.90704,2758.4,2757.5,1.54050216]
[1645292066759,1.90704,2758.4,2757.8,0.00330049]
[1645292067705,1.90704,2758.4,2757.5,1.54050216]
[1645292067904,1.90704,2758.4,2757.8,0.00330049]
[1645292068704,1.90704,2758.4,2757.5,1.54050216]
[1645292068910,1.2565263,2758.8,2757.8,5.0]
[1645292069111,1.2565263,2758.8,2758.2,5.0]
[1645292069112,0.00329959,2758.5,2758.2,5.0]
[1645292069309,0.01319589,2759.0,2758.7,0.00659917]
[1645292069512,0.01319589,2759.0,2758.8,1.54050216]
[1645292069712,0.01319589,2759.0,2758.9,0.68752485]
[1645292069911,0.01319589,2759.0,2758.9,1.54050216]
[1645292070113,0.00680569,2759.3,2758.9,0.90647]
[1645292070308,0.00680569,2759.8,2758.9,2.44695916]
[1645292070510,11.67742946,2759.9,2758.9,2.44695916]
[1645292070511,0.00680569,2759.4,2758.9,2.44695916]
[1645292070762,0.00680569,2759.8,2759.0,1.54050216]
[1645292071566,0.00680569,2759.8,2758.7,0.00659917]
[1645292071764,0.00680569,2759.8,2758.8,1.54004456]
[1645292071966,0.523,2759.7,2758.7,0.00659917]
[1645292072167,5.50680569,2759.6,2758.3,3.5]
[1645292072469,1.823,2759.5,2758.6,0.50292435]
[1645292072665,1.823,2759.5,2758.7,1.54013974]
[1645292072666,0.00331182,2759.3,2758.7,1.54013974]
[1645292072865,0.52631182,2759.3,2758.7,1.54013974]
[1645292073067,0.90679,2759.2,2758.7,1.54013974]
[1645292073270,0.00680569,2759.2,2758.7,1.54013974]
[1645292073466,0.00331182,2759.3,2758.7,1.54013974]
[1645292073666,0.00680569,2759.5,2758.7,1.54013974]
[1645292073865,0.00331196,2759.1,2758.7,1.54013974]
[1645292074164,0.00331196,2759.1,2758.7,5.04013974]
[1645292074414,0.00331196,2759.1,2758.8,1.54013974]
[1645292074614,0.00331196,2759.1,2758.9,3.5]
[1645292074812,0.00680569,2759.7,2759.0,1.54013974]
[1645292075018,0.00680569,2759.7,2759.1,5.04013974]
[1645292075019,0.01324584,2759.5,2759.1,5.04013974]
[1645292075217,0.01324584,2759.5,2759.2,2.16929356]
[1645292075419,0.01324584,2759.5,2759.3,5.04013974]
[1645292075714,0.01324584,2759.5,2759.2,0.62915382]
[1645292075715,0.01324584,2759.5,2759.4,3.5]
[1645292075912,0.00680569,2760.1,2759.4,3.5]
[1645292076118,0.00680569,2760.3,2759.4,4.40627]
[1645292076320,0.0051516,2760.6,2760.2,0.59543855]
[1645292076321,0.00680569,2760.5,2760.2,0.59543855]
[1645292076521,0.01195729,2760.6,2760.2,0.59543855]
[1645292076715,0.0051516,2760.6,2760.2,0.59543855]
[1645292076915,0.0051516,2760.6,2759.4,0.90627]
[1645292077115,0.0051516,2760.6,2759.2,5.35535428]
[1645292077116,0.0051516,2760.6,2759.5,1.53954189]
[1645292077316,0.0051516,2760.6,2759.6,1.53954189]
[1645292077520,0.0051516,2760.6,2759.2,1.2335]
[1645292077521,0.00331365,2760.5,2759.3,3.5]
[1645292077716,0.00680569,2760.5,2759.4,1.53965353]
[1645292077916,0.00680569,2760.5,2759.5,1.53965353]
[1645292078169,0.00680569,2760.5,2759.6,1.53965353]
[1645292078458,0.00680569,2760.5,2759.9,0.66661134]
[1645292078660,0.9064,2760.4,2759.9,0.66661134]
[1645292079060,1.0,2760.5,2759.9,0.66661134]
[1645292079460,2.30113094,2760.6,2759.9,0.66661134]
[1645292079862,0.90638,2760.5,2759.9,0.66661134]
[1645292080264,1.90638,2760.5,2759.9,0.66661134]
[1645292080460,0.48827094,2760.6,2759.9,0.66661134]
[1645292080661,1.0,2760.5,2759.9,0.66661134]
[1645292080858,0.43827094,2760.6,2759.9,0.66661134]
[1645292081260,0.44158434,2760.6,2759.9,0.66661134]
[1645292082108,0.43827094,2760.6,2759.9,0.66661134]
[1645292082308,0.44158438,2760.6,2759.9,0.66661134]
[1645292082714,0.90638,2760.5,2759.9,0.66661134]
[1645292083711,0.01011909,2760.6,2760.4,0.65613361]
[1645292083920,0.0033134,2760.6,2760.4,0.65613361]
[1645292084511,0.00680569,2760.8,2760.4,0.65613361]
[1645292084713,7.32,2760.9,2760.4,0.65613361]
[1645292085113,0.53960117,2761.5,2760.4,0.65613361]
[1645292085114,0.00680569,2761.1,2760.4,0.65613361]
[1645292085323,0.00680569,2761.3,2760.4,0.65613361]
[1645292085968,0.00331078,2760.9,2760.4,0.65613361]
[1645292086773,0.01324114,2761.3,2760.4,0.65613361]
[1645292086774,0.00680569,2761.3,2760.4,0.65613361]
[1645292087184,0.00331084,2760.8,2760.4,0.65613361]
[1645292087974,0.00680569,2761.3,2760.4,0.65613361]
[1645292088172,0.90615,2761.2,2760.4,0.65613361]
[1645292088469,0.00331087,2760.7,2760.4,0.65613361]
[1645292089172,0.00331087,2760.7,2759.9,3.6811]
[1645292089173,0.00680569,2761.1,2759.9,0.1811]
[1645292089412,0.00331089,2760.7,2760.0,1.53912636]
[1645292089614,0.00680569,2761.0,2760.7,0.00662177]
[1645292089809,0.83624159,2761.1,2760.7,0.00662177]
[1645292090212,0.9062,2761.0,2760.7,0.00662177]
[1645292090413,0.523,2760.9,2760.7,0.00662177]
[1645292090811,1.43756244,2760.9,2760.7,0.00662177]
[1645292091018,0.04183,2760.8,2760.7,0.00662177]
[1645292091317,0.56483,2760.8,2760.7,0.00662177]
[1645292091514,1.47115,2760.8,2760.7,0.00662177]
[1645292091715,1.42932,2760.8,2760.7,0.00662177]
[1645292091913,1.42932,2760.8,2759.2,3.66509613]
[1645292091914,1.523,2760.8,2759.2,3.66509613]
[1645292092111,0.00680569,2760.7,2759.2,3.66509613]
[1645292092312,0.00680569,2760.7,2759.3,1.5392886]
[1645292092512,0.00680569,2760.8,2759.8,0.592946]
[1645292092915,0.00680569,2760.8,2759.9,1.53923748]
[1645292093174,0.00680569,2760.8,2759.8,0.592946]
[1645292093364,0.00680569,2760.8,2759.9,1.53925571]
[1645292093764,0.00680569,2760.8,2759.9,3.5]
[1645292093968,0.00680569,2760.8,2760.0,1.53916898]
[1645292094168,0.00680569,2760.8,2760.1,3.5]
[1645292094465,0.01011628,2760.8,2760.3,0.50569418]
[1645292094665,0.00331059,2760.8,2760.3,0.50569418]
[1645292095265,0.00680569,2761.1,2760.3,0.50569418]
[1645292095466,0.00331071,2760.8,2760.3,0.50569418]
[1645292096169,0.00331071,2760.8,2759.8,1.8123072]
[1645292096369,7.32,2760.8,2759.4,4.6288]
[1645292096569,0.00680569,2760.7,2759.5,1.53940013]
[1645292096768,1.00680569,2760.7,2759.5,1.53940013]
[1645292097415,1.00680569,2760.7,2759.7,0.59907367]
[1645292097613,0.00680569,2760.7,2759.8,1.53940013]
[1645292097814,1.00680569,2760.7,2759.8,1.53940013]
[1645292098612,1.00680569,2760.7,2760.3,0.58622062]
[1645292098813,1.0,2760.7,2760.3,0.58622062]
[1645292099815,0.01011621,2760.8,2760.3,0.58622062]
[1645292100015,0.00680569,2760.8,2760.3,0.58622062]
[1645292100216,0.00857261,2760.8,2760.3,0.58622062]
[1645292100764,0.00176692,2760.8,2760.3,0.58622062]
[1645292101266,0.00680569,2761.1,2760.3,0.58622062]
[1645292101463,0.00331322,2760.8,2760.4,1.53911133]
[1645292101664,0.00331322,2760.8,2760.3,0.58622062]
[1645292101965,0.00331322,2760.8,2760.4,5.03912287]
[1645292102165,0.00331322,2760.8,2760.5,1.53912287]
[1645292102365,0.00680569,2761.3,2761.0,0.61475897]
[1645292102564,2.72180569,2761.9,2761.0,0.61475897]
[1645292102766,0.01325016,2761.4,2761.0,0.61475897]
[1645292103568,2.72180569,2761.9,2761.0,0.61475897]
[1645292103966,0.00331304,2761.3,2761.0,0.61475897]
[1645292104910,0.00680569,2761.7,2761.0,0.61475897]
[1645292105113,0.00331307,2761.3,2761.0,0.61475897]
[1645292106010,0.02005597,2761.7,2761.0,0.61475897]
[1645292106011,0.00680569,2761.7,2761.0,0.61475897]
[1645292106412,0.97336904,2761.8,2761.0,0.61475897]
[1645292107712,0.97336904,2761.8,2761.1,1.53878538]
[1645292107919,0.97336904,2761.8,2761.1,5.03878538]
[1645292108176,5.24952923,2762.3,2761.2,1.53878538]
[1645292108177,0.54547923,2762.3,2761.2,1.53878538]
[1645292108770,0.54547923,2762.3,2761.7,0.6484344]
[1645292108965,0.44547923,2762.3,2760.9,5.4922977]
[1645292109164,0.44547923,2762.3,2761.0,1.53869194]
[1645292109366,0.90581,2762.2,2761.0,2.44446194]
[1645292109568,1.20581,2762.2,2761.1,5.03869194]
[1645292109765,1.50581,2762.2,2761.2,1.53869194]
[1645292109968,0.00332527,2761.8,2761.5,0.00332567]
[1645292110170,1.50581,2762.2,2761.8,0.00665053]
[1645292110171,5.59062777,2762.2,2761.8,0.00665053]
[1645292110372,5.59062777,2762.2,2761.5,0.00332567]
[1645292110373,0.94629484,2761.8,2761.5,0.00332567]
[1645292110574,0.94629484,2761.8,2760.7,1.53900048]
[1645292110575,46.99667433,2761.5,2760.7,1.53900048]
[1645292110767,0.523,2761.4,2760.2,3.5]
[1645292110967,2.46950711,2761.4,2760.4,0.5]
[1645292111167,2.46950711,2761.4,2760.5,1.53911231]
[1645292111372,2.46950711,2761.4,2760.6,1.53911231]
[1645292111373,0.90629,2761.0,2760.6,1.53911231]
[1645292111578,0.90629,2761.0,2760.3,1.53911231]
[1645292111579,0.523,2760.9,2760.3,1.53911231]
[1645292111771,6.47852061,2761.4,2760.3,1.53911231]
[1645292111772,1.0,2761.2,2760.4,5.03911231]
[1645292112024,1.0,2761.2,2760.5,1.53911231]
[1645292112220,1.94640019,2761.8,2760.6,1.53911231]
[1645292112424,2.24640019,2761.8,2761.1,0.65399389]
[1645292112618,2.54640019,2761.8,2761.2,1.53911231]
[1645292113218,3.45236019,2761.8,2761.2,1.53911231]
[1645292113419,3.45236019,2761.8,2761.4,0.00157729]
[1645292114417,3.45236019,2761.8,2760.8,1.53887981]
[1645292114618,2.2092866,2761.8,2761.4,0.00332715]
[1645292115227,0.523,2761.7,2761.4,2.715e-05]
[1645292115426,4.99062777,2761.5,2761.4,2.715e-05]
[1645292115680,4.99062777,2761.5,2760.6,1.53921572]
[1645292115681,0.47321714,2760.8,2760.6,1.53921572]
[1645292115871,0.523,2760.7,2759.9,1.53921572]
[1645292116071,0.90655,2760.6,2759.5,0.67739612]
[1645292116271,0.90655,2760.6,2759.6,2.21661184]
[1645292116272,0.523,2760.5,2759.6,2.21661184]
[1645292116470,0.523,2760.5,2759.7,2.21661184]
[1645292116675,0.90657,2760.3,2759.8,1.53921572]
[1645292116872,0.523,2760.2,2759.9,1.53921572]
[1645292117171,0.523,2760.2,2760.0,1.53921572]
[1645292117374,0.523,2760.2,2760.1,1.53921572]
[1645292117570,0.523,2760.2,2759.7,1.53921572]
[1645292117771,0.523,2760.2,2759.8,1.53921572]
[1645292118372,0.523,2760.2,2759.9,1.53921572]
[1645292118570,0.523,2760.2,2760.0,1.53921572]
[1645292118772,0.523,2760.2,2760.1,1.53921572]
[1645292118972,0.523,2760.2,2759.8,0.67896933]
[1645292119408,0.523,2760.2,2759.8,2.21661184]
[1645292119611,0.523,2760.2,2760.0,0.00332786]
[1645292120311,0.823,2760.2,2760.0,1.54254358]
[1645292120511,0.823,2760.2,2759.7,1.53921572]
[1645292120713,0.90662,2760.0,2759.8,1.53921572]
[1645292120913,0.523,2759.9,2759.3,0.67739612]
[1645292121213,0.523,2759.9,2759.4,1.53956752]
[1645292121511,0.523,2759.9,2759.5,1.53956752]
[1645292121717,0.90663,2759.8,2759.6,1.53956752]
[1645292121909,0.90663,2759.8,2759.7,1.53956752]
[1645292122110,0.90663,2759.8,2759.5,0.00332814]
[1645292122912,0.90663,2759.8,2759.5,1.53956752]
[1645292123161,0.90663,2759.8,2759.6,1.53956752]
[1645292123362,0.90663,2759.8,2759.7,1.53956752]
[1645292123661,1.42963,2759.8,2759.5,0.00332814]
[1645292123861,0.90663,2759.8,2759.5,0.00332814]
[1645292124060,0.90663,2759.8,2759.2,0.67739612]
[1645292124459,0.90663,2759.8,2759.5,0.00332814]
[1645292125361,0.90663,2759.8,2759.1,2.21689176]
[1645292125559,0.90663,2759.8,2759.5,0.00332814]
[1645292126361,0.90663,2759.8,2759.5,1.54282378]
[1645292126563,0.90663,2759.8,2759.6,1.53949564]
[1645292126765,0.90663,2759.8,2759.7,1.53949564]
[1645292127008,0.90663,2759.8,2759.5,0.00332814]
[1645292127409,0.435,2759.9,2759.5,0.00332814]
[1645292127811,0.435,2759.9,2759.0,1.43110438]
[1645292127812,0.435,2759.9,2759.3,1.53949302]
[1645292128009,0.435,2759.9,2759.5,0.00332814]
[1645292128208,0.435,2759.9,2759.5,1.54282116]
[1645292128408,0.435,2759.9,2759.6,1.53949302]
[1645292128610,0.435,2759.9,2759.7,1.53949302]
[1645292128808,0.435,2759.9,2759.8,1.53949302]
[1645292129320,0.435,2759.9,2759.6,0.00332808]
[1645292129511,0.90653,2760.2,2759.6,0.00332808]
[1645292129711,1.20653,2760.2,2759.6,0.00332808]
[1645292130111,1.20653,2760.2,2759.2,1.53949302]
[1645292130310,1.20653,2760.2,2759.8,0.003328]
[1645292130758,1.50653,2760.2,2759.8,0.003328]
[1645292131260,1.50653,2760.2,2759.6,1.53949302]
[1645292131461,1.50653,2760.2,2759.7,1.53949302]
[1645292131657,1.50653,2760.2,2759.1,4.17739612]
[1645292131658,1.50653,2760.2,2759.9,0.00332794]
[1645292131861,1.50653,2760.2,2759.9,1.54282096]
[1645292132060,1.50653,2760.2,2759.9,0.00332794]
[1645292132459,1.50653,2760.2,2759.2,1.53939757]
[1645292132859,1.50653,2760.2,2759.9,0.00332791]
[1645292133759,1.50653,2760.2,2759.2,1.53939757]
[1645292133962,1.50653,2760.2,2759.9,0.00332791]
[1645292135015,1.50653,2760.2,2759.2,1.53939757]
[1645292135214,1.50653,2760.2,2759.9,0.00332791]
[1645292135612,0.90653,2760.2,2759.9,0.00332791]
[1645292136214,0.90653,2760.2,2759.7,1.53939757]
[1645292136416,0.90653,2760.2,2759.9,0.00332791]
[1645292137016,1.50653,2760.2,2759.9,0.00332791]
[1645292137414,1.50653,2760.2,2759.2,1.53943002]
[1645292137717,1.50653,2760.2,2759.9,0.00332791]
[1645292138363,1.50653,2760.2,2759.9,0.0022167]
[1645292138559,1.50653,2760.2,2759.2,1.53943002]
[1645292138758,1.50653,2760.2,2759.9,0.00332791]
[1645292139664,1.50653,2760.2,2759.2,1.53943002]
[1645292139864,0.52690266,2759.9,2759.2,1.53943002]
[1645292140162,0.47321714,2760.1,2759.9,1.05380531]
[1645292141161,0.47321714,2760.1,2759.9,1.05537847]
[1645292142023,0.47321714,2760.1,2759.9,1.05380531]
[1645292142420,0.47321714,2760.1,2759.9,1.05713325]
[1645292143419,0.47321714,2760.1,2759.9,1.05380531]
[1645292143619,0.47321714,2760.1,2759.9,1.05713325]
[1645292144521,0.47321714,2760.1,2759.9,1.05380531]
[1645292144726,0.47321714,2760.1,2759.9,1.05713325]
[1645292145323,0.90653,2760.2,2759.9,1.05713325]
[1645292145525,1.0,2760.3,2759.9,1.05713325]
[1645292145764,1.0,2760.3,2760.0,1.53917103]
[1645292145967,3.1668,2760.5,2760.0,1.53917103]
[1645292145968,1.0,2760.4,2760.0,1.53917103]
[1645292146170,2.798,2760.7,2760.0,1.53917103]
[1645292146364,0.47321714,2760.7,2760.0,1.53917103]
[1645292146763,1.81258,2761.0,2760.0,1.53917103]
[1645292146966,2.11258,2761.0,2760.0,1.53917103]
[1645292147162,2.11258,2761.0,2760.2,0.0031022]
[1645292147367,1.81258,2761.0,2760.2,0.0031022]
[1645292147563,0.9062,2761.1,2760.2,0.0031022]
[1645292147964,0.9062,2761.1,2760.2,3.5031022]
[1645292148164,0.9062,2761.1,2760.3,1.53917103]
[1645292148366,7.4275,2761.2,2760.4,3.5]
[1645292148565,6.1828,2761.2,2760.5,1.53917103]
[1645292148965,6.1828,2761.2,2760.6,1.53917103]
[1645292149163,3.2201,2761.2,2760.2,0.00310239]
[1645292149422,3.2201,2761.2,2760.2,1.53895318]
[1645292149612,3.2201,2761.2,2760.3,3.5]
[1645292149813,3.2201,2761.2,2760.4,1.53895318]
[1645292150214,4.12625,2761.2,2760.2,1.5420557]
[1645292150417,4.12625,2761.2,2760.3,1.53895318]
[1645292150616,4.12625,2761.2,2760.2,1.53895318]
[1645292150814,1.0,2761.1,2760.3,1.53895318]
[1645292151016,1.0,2761.1,2760.4,1.53895318]
[1645292151217,1.0,2761.1,2760.2,0.00311769]
[1645292151820,1.0,2761.1,2760.1,1.53904181]
[1645292152015,1.0,2761.1,2760.2,0.00311759]
[1645292152620,0.90625,2760.9,2760.2,0.00311759]
[1645292153019,3.2201,2761.2,2760.1,1.53904181]
[1645292153263,3.2201,2761.2,2760.2,0.00311759]
[1645292153663,0.90616,2761.1,2760.2,0.00311759]
[1645292154061,1.50616,2761.1,2760.0,1.53904181]
[1645292154262,1.81289,2760.9,2760.0,1.53904181]
[1645292154461,1.81289,2760.9,2760.2,0.00311657]
[1645292155269,1.81289,2760.9,2760.0,1.53904181]
[1645292155468,0.90645,2760.8,2760.0,5.03904181]
[1645292155669,1.81289,2760.9,2760.2,0.0031165]
[1645292155670,1.0,2760.9,2760.2,0.0031165]
[1645292155866,4.4746,2761.2,2760.2,3.5031165]
[1645292156067,4.4746,2761.2,2760.3,5.03904181]
[1645292156068,1.0,2761.0,2760.3,5.03904181]
[1645292156267,1.0,2761.1,2760.4,1.53904181]
[1645292156474,1.0,2761.1,2760.5,1.53904181]
[1645292156668,1.0,2761.1,2760.6,1.53904181]
[1645292156929,1.0,2761.1,2760.7,1.53904181]
[1645292157324,1.0,2761.2,2760.2,1.54215838]
[1645292157525,1.90613,2761.2,2760.3,1.53901254]
[1645292157724,1.90613,2761.2,2760.4,1.53901254]
[1645292157929,1.90613,2761.2,2760.2,1.54212921]
[1645292158123,1.90613,2761.2,2760.3,1.53901254]
[1645292158323,1.90613,2761.2,2760.4,1.53901254]
[1645292158524,1.90613,2761.2,2760.5,1.53901254]
[1645292158724,1.90613,2761.2,2760.6,1.53901254]
[1645292158924,1.90613,2761.2,2760.7,1.53901254]
[1645292159126,1.90613,2761.2,2760.8,1.53901254]
[1645292159423,1.90613,2761.2,2760.2,0.00311677]
[1645292159624,1.90613,2761.2,2760.2,1.54211812]
[1645292159826,1.90613,2761.2,2760.3,3.5]
[1645292160025,1.90613,2761.2,2760.4,1.53900135]
[1645292160966,1.90613,2761.2,2760.5,1.53900135]
[1645292161166,1.90613,2761.2,2760.6,1.53900135]
[1645292161366,1.90613,2761.2,2760.7,1.53900135]
[1645292161574,1.90613,2761.2,2760.8,1.53900135]
[1645292161867,2.67934714,2761.2,2760.2,0.00311907]
[1645292162067,0.90628,2760.9,2760.2,1.54216092]
[1645292162465,0.90628,2760.9,2760.3,1.53904185]
[1645292162667,0.90628,2760.9,2760.4,1.53904185]
[1645292162668,1.90628,2760.9,2760.4,1.53904185]
[1645292163076,1.90628,2760.9,2760.5,1.53904185]
[1645292163266,1.90628,2760.9,2760.6,1.53904185]
[1645292163468,1.90628,2760.9,2760.7,1.53904185]
[1645292163665,1.90628,2760.9,2760.0,4.21574903]
[1645292163868,1.90628,2760.9,2760.1,1.53904347]
[1645292164068,1.90628,2760.9,2760.2,0.00311904]
[1645292164510,1.90628,2760.9,2760.2,0.00155184]
[1645292164913,1.90628,2760.9,2760.1,1.53904347]
[1645292165913,1.90628,2760.9,2760.2,3.5]
[1645292166119,1.90628,2760.9,2760.3,1.53904347]
[1645292166919,1.90628,2760.9,2760.4,1.53904347]
[1645292167116,1.90628,2760.9,2760.5,1.53904347]
[1645292167315,1.90628,2760.9,2760.6,1.53904347]
[1645292167516,1.90628,2760.9,2760.0,0.71574903]
[1645292167716,1.90628,2760.9,2760.1,1.53905195]
[1645292168365,1.90628,2760.9,2760.0,4.21574903]
[1645292168561,1.90628,2760.9,2760.1,1.53908512]
[1645292168764,1.90628,2760.9,2760.1,1.5424155]
[1645292169664,1.90628,2760.9,2760.1,1.53908512]
[1645292169863,0.00677166,2761.2,2760.2,3.5]
[1645292169864,0.90616,2761.1,2760.2,3.5]
[1645292170064,0.00677166,2761.0,2760.2,3.5]
[1645292170263,0.00677166,2761.0,2760.1,1.5424155]
[1645292170463,0.00677166,2761.0,2760.2,1.53908512]
[1645292170664,0.00677166,2761.0,2760.3,1.53908512]
[1645292170867,0.00677166,2761.0,2760.4,1.53908512]
[1645292171064,0.91293166,2761.1,2760.5,1.53908512]
[1645292171264,0.91293166,2761.1,2760.6,1.53908512]
[1645292171662,0.00677166,2761.1,2760.6,1.53908512]
[1645292171918,1.60677166,2761.2,2760.6,1.53908512]
[1645292172317,0.60677166,2761.2,2760.7,1.53908512]
[1645292172515,0.60677166,2761.2,2760.8,1.53908512]
[1645292172516,1.60677166,2761.2,2760.8,1.53908512]
[1645292172716,1.6,2761.2,2760.1,3.5033306]
[1645292172915,0.00677166,2761.1,2760.2,1.53899078]
[1645292173315,0.00677166,2761.1,2760.3,4.06250246]
[1645292173521,0.00677166,2761.1,2760.4,1.53899078]
[1645292175118,0.90621,2761.0,2760.4,1.53899078]
[1645292175324,0.90621,2761.0,2760.5,1.53899078]
[1645292175521,0.90621,2761.0,2760.6,1.53899078]
[1645292175764,0.90621,2761.0,2760.7,1.53899078]
[1645292175964,0.90621,2761.0,2760.8,1.53899078]
[1645292176168,0.90621,2761.0,2760.9,1.53899078]
[1645292176565,0.90621,2761.0,2760.2,2.25109568]
[1645292176764,0.90621,2761.0,2760.3,1.53899078]
[1645292177870,1.50621,2761.0,2760.4,1.53899078]
[1645292178066,0.435,2760.9,2760.5,1.53899078]
[1645292178268,0.435,2760.9,2760.0,3.5]
[1645292178471,0.90638,2760.7,2760.1,1.54247703]
[1645292178773,1.90638,2760.7,2760.2,1.53914656]
[1645292181815,1.90638,2760.7,2760.0,2.21654268]
[1645292182017,1.90638,2760.7,2760.1,1.54247691]
[1645292182216,1.90638,2760.7,2760.2,1.53914656]
[1645292182415,1.90638,2760.7,2760.3,1.53914656]
[1645292182616,1.90638,2760.7,2760.4,1.53914656]
[1645292182816,1.90638,2760.7,2760.5,1.53914656]
[1645292183017,1.90638,2760.7,2760.6,1.53914656]
[1645292183265,1.90638,2760.7,2760.1,0.00333038]
[1645292184263,1.90638,2760.7,2760.0,2.21654268]
[1645292184462,1.90638,2760.7,2760.1,0.00333031]
[1645292185464,1.90638,2760.7,2760.0,2.21654268]
[1645292185667,1.90638,2760.7,2760.1,0.00333031]
[1645292187024,1.90638,2760.7,2760.1,0.68072643]
[1645292187625,1.0,2760.7,2760.1,0.67966331]
[1645292187825,0.522,2760.8,2760.2,0.67739612]
[1645292188023,0.522,2760.8,2760.3,1.53914656]
[1645292188224,0.522,2760.8,2760.4,1.53914656]
[1645292188423,0.522,2760.8,2760.2,0.67739612]
[1645292188424,0.522,2760.8,2760.5,1.53914656]
[1645292188629,0.522,2760.8,2760.6,1.53914656]
[1645292188826,0.522,2760.8,2760.7,1.53914656]
[1645292189224,0.522,2760.8,2760.3,0.67739612]
[1645292189425,0.522,2760.8,2760.1,2.76654656]
[1645292189426,0.522,2760.8,2760.2,5.71654268]
[1645292189624,0.522,2760.8,2760.2,2.21654268]
[1645292189825,0.522,2760.8,2760.3,2.21654268]
[1645292190025,1.42829,2760.8,2760.4,1.53914656]
[1645292190225,1.42829,2760.8,2760.5,1.53914656]
[1645292190426,1.42829,2760.8,2760.6,1.53914656]
[1645292190669,1.42829,2760.8,2760.7,1.53914656]
[1645292190865,1.42829,2760.8,2760.4,1.53914656]
[1645292191067,1.42829,2760.8,2760.5,1.53914656]
[1645292191467,1.42829,2760.8,2760.3,1.53914656]
[1645292191670,1.42829,2760.8,2760.6,1.53914656]
[1645292191868,1.42829,2760.8,2760.7,1.53914656]
[1645292192667,1.42829,2760.8,2760.3,0.67739612]
[1645292193668,0.522,2760.8,2760.3,4.17739612]
[1645292193870,1.0,2760.9,2760.3,4.17739612]
[1645292193871,0.9062,2761.1,2760.8,1.044]
[1645292194069,0.522,2761.0,2760.9,1.53914656]
[1645292195111,0.822,2761.0,2760.9,1.53914656]
[1645292197916,0.522,2761.0,2760.9,1.53914656]
[1645292202218,0.822,2761.0,2760.9,1.53914656]
[1645292202623,0.522,2761.0,2760.9,1.53914656]
[1645292216915,1.4283727,2761.0,2760.9,1.53914656]
[1645292217120,0.522,2761.0,2760.9,1.53914656]
[1645292217317,1.522,2761.0,2760.9,1.53914656]
[1645292217519,0.522,2761.0,2760.9,1.53914656]
[1645292217716,1.522,2761.0,2760.9,1.53789237]
[1645292217918,0.522,2761.0,2760.9,1.53789237]
[1645292218119,1.522,2761.0,2760.9,1.53789237]
[1645292218618,0.522,2761.0,2760.9,1.4364184]
[1645292218824,1.522,2761.0,2760.9,1.4364184]
[1645292219522,2.4283717,2761.0,2760.9,1.4364184]
[1645292219920,1.4283717,2761.0,2760.9,1.4364184]
[1645292220126,1.522,2761.0,2760.9,1.4364184]
[1645292220321,0.522,2761.0,2760.9,1.4364184]
[1645292220519,1.522,2761.0,2760.9,1.4364184]
[1645292221070,0.522,2761.0,2760.9,1.4364184]
[1645292221279,1.522,2761.0,2760.9,1.4364184]
[1645292221472,1.9062,2761.1,2761.0,1.11935844]
[1645292221671,1.90484406,2761.1,2761.0,1.11935844]
[1645292223373,1.0,2761.1,2761.0,1.11935844]
[1645292230569,2.122,2761.1,2761.0,1.11935844]
[1645292230966,3.06857227,2761.1,2761.0,1.11935844]
[1645292231167,3.01857227,2761.1,2761.0,1.11935844]
[1645292234116,3.10468843,2761.1,2761.0,1.11935844]
[1645292234517,2.71857227,2761.1,2761.0,1.11935844]
[1645292234716,2.46857227,2761.1,2761.0,1.11935844]
[1645292237373,2.76857227,2761.1,2761.0,1.11935844]
[1645292238576,2.76857227,2761.1,2761.0,2.65815173]
[1645292242020,2.46857227,2761.1,2761.0,2.65815173]
[1645292242219,0.82726594,2761.1,2761.0,2.65815173]
[1645292243022,0.91577963,2761.4,2761.0,2.65815173]
[1645292243023,0.00677166,2761.4,2761.0,2.65815173]
[1645292243272,0.00291797,2761.4,2761.1,1.53879329]
[1645292243869,0.00291797,2761.4,2761.1,2.21618941]
[1645292244063,0.00291797,2761.4,2761.2,1.53879329]
[1645292244264,1.07649806,2761.6,2761.2,0.65420496]
[1645292244463,1.07649806,2761.6,2761.3,1.53879329]
[1645292244464,0.00291584,2761.4,2761.3,1.53879329]
[1645292245373,1.0697264,2761.6,2761.3,1.53879329]